lending/lending_fUSD_20260310
["ID","MTS","AMOUNT","RATE_DAILY","PERIOD"]
[408081934,1773119432877,-270.0,0.000145,2]
[408081935,1773119432891,-200.0,0.00014994,2]
[408081936,1773119432900,-288.72789046,0.00014999,2]
[408081937,1773119432912,-84.27210954,0.00014999,2]
[408081938,1773119432922,-230.0,0.00014999,2]
[408081939,1773119432933,-1168.62942106,0.00014999,2]
[408081940,1773119432948,-31.37057894,0.00014999,2]
[408081941,1773119432957,-554.061846,0.00015,2]
[408081942,1773119432968,-287.77536175,0.00015,30]
[408081943,1773119432980,-212.22463825,0.00015,30]
[408081944,1773119432989,-500.0,0.00015,30]
[408081945,1773119432999,-474.60150495,0.00015,30]
[408081946,1773119433011,-25.39849505,0.00015,30]
[408081947,1773119433020,-335.64415301,0.00015,30]
[408081949,1773119433036,-164.35584699,0.00015,30]
[408081950,1773119433046,-500.0,0.00015,30]
[408081952,1773119433055,-500.0,0.00015,30]
[408081954,1773119433065,-270.82600181,0.00015,30]
[408081956,1773119433075,-500.0,0.00015,30]
[408081958,1773119433085,-500.0,0.00015,30]
[408081960,1773119433094,-500.0,0.00015,30]
[408081962,1773119433103,-524.69213609,0.00015,30]
[408081964,1773119433113,-1408.24853487,0.00015184,2]
[408081966,1773119433123,-797.20679846,0.00015188,2]
[408081968,1773119433132,-1517.64,0.000153,2]
[408081970,1773119433142,-510.95848358,0.000154,2]
[408081972,1773119433151,-2251.82004778,0.00015807,2]
[408081974,1773119433160,-250.0,0.0001595,2]
[408081976,1773119433169,-5000.0,0.0001595,2]
[408081978,1773119433179,-5000.00808326,0.000162,5]
[408081980,1773119433188,-55159.23468916,0.00016275,2]
[408081982,1773119433197,-1419.54,0.00016467,2]
[408081984,1773119433207,-250.0,0.00016493,2]
[408081987,1773119433220,-2500.0,0.00016493,2]
[408081989,1773119433230,-2500.0,0.00016493,2]
[408081991,1773119433240,-250.0,0.00016493,2]
[408081993,1773119433249,-2500.0,0.00016493,2]
[408081994,1773119433260,-2766.73920595,0.00016855,2]
[408081995,1773119433269,-166.66,0.00016961,2]
[408081996,1773119433279,-500.0,0.0001699,2]
[408081997,1773119433289,-500.0,0.0001699,2]
[408081998,1773119433298,-500.0,0.0001699,2]
[408081999,1773119433308,-500.0,0.0001699,2]
[408082000,1773119433318,-151.0,0.0001699,2]
[408082001,1773119433328,-500.0,0.0001699,2]
[408082002,1773119433337,-151.0,0.0001699,2]
[408082003,1773119433347,-46467.11742284,0.00017,2]
[408082004,1773119433359,-1968.71887284,0.00017,2]
[408082005,1773119433370,-266.38014877,0.00017,2]
[408082009,1773119438188,-2020.0,0.00017,2]
[408082010,1773119438245,-1277.27139037,0.00017,2]
[408082011,1773119438302,-1653.79705277,0.00017,2]
[408082184,1773119440398,-309.928,0.00016438,2]
[408082186,1773119440408,-1115.90017633,0.00017,2]
[408082196,1773119440560,-35894.68207654,0.00017,2]
[408082197,1773119440571,-504.0,0.00017,2]
[408082198,1773119440581,-3094.38542102,0.000171,2]
[408082199,1773119440590,-1224.06267919,0.0001711,2]
[408082200,1773119440600,-1584.67207405,0.00017152,2]
[408082201,1773119440610,-500.0,0.00017661,2]
[408082202,1773119440619,-166.66,0.00017661,2]
[408082203,1773119440629,-166.66,0.00017757,2]
[408082204,1773119440639,-222.162349,0.00017923,7]
[408082205,1773119440648,-500.0,0.00017935,2]
[408082206,1773119440658,-150.0,0.00017951,2]
[408082207,1773119440669,-332.43165807,0.00017957,2]
[408082208,1773119440679,-166.66,0.00018131,2]
[408082209,1773119440688,-700.0,0.00018356,7]
[408082210,1773119440698,-500.0,0.00018356,7]
[408082211,1773119440707,-500.0,0.00018356,7]
[408082212,1773119440717,-166.66,0.0001836,2]
[408082213,1773119440732,-750.449126,0.0001843,7]
[408082214,1773119440747,-1161.92853958,0.0001845,2]
[408082215,1773119440756,-377.767753,0.00018479,7]
[408082216,1773119440766,-166.66,0.00018505,2]
[408082217,1773119440776,-2897.59996363,0.00018527,3]
[408082218,1773119440787,-200.0,0.00018692,2]
[408082219,1773119440796,-4476.02,0.00018692,2]
[408082220,1773119440806,-2000.0,0.00018692,2]
[408082221,1773119440818,-1650.08,0.00018692,2]
[408082222,1773119440828,-981.18,0.00018692,2]
[408082223,1773119440839,-1600.0,0.00018692,2]
[408082224,1773119440850,-6704.58644351,0.00018765,2]
[408082225,1773119440862,-481.42,0.00018825,2]
[408082226,1773119440872,-481.41,0.00018825,2]
[408082227,1773119440882,-1000.0,0.00018832,2]
[408082229,1773119440898,-500.0,0.00018832,2]
[408082230,1773119440909,-200.0,0.00018832,2]
[408082231,1773119440919,-174.61919141,0.00018832,2]
[408082232,1773119440932,-262.90206542,0.00018832,2]
[408082233,1773119440942,-2000.0,0.00018866,2]
[408082234,1773119440952,-184.97,0.00018866,2]
[408082235,1773119440963,-649.43,0.00018866,2]
[408082236,1773119440973,-500.0,0.00018866,2]
[408082237,1773119440983,-3240.0,0.00018866,2]
[408082238,1773119440993,-166.66,0.00018879,2]
[408082239,1773119441003,-200.0,0.00018997,2]
[408082240,1773119441012,-200.0,0.00018997,2]
[408082241,1773119441022,-200.0,0.00018997,2]
[408082242,1773119441032,-200.0,0.00018997,2]
[408082243,1773119441041,-200.0,0.00018997,2]
[408082244,1773119441051,-200.0,0.00018997,2]
[408082245,1773119441062,-200.0,0.00018997,2]
[408082246,1773119441073,-200.0,0.00018997,2]
[408082247,1773119441084,-200.0,0.00018997,2]
[408082248,1773119441094,-200.0,0.00018997,2]
[408082249,1773119441104,-200.0,0.00018997,2]
[408082250,1773119441115,-262.0,0.00018997,2]
[408082251,1773119441125,-1901.10473512,0.00018998,2]
[408082252,1773119441138,-669.66451597,0.00018998,2]
[408082253,1773119441149,-2568.02714222,0.00019,2]
[408082254,1773119441159,-166.66,0.0001906,2]
[408082255,1773119441168,-353.39112616,0.00019091,2]
[408082256,1773119441178,-1227.40844035,0.000191,2]
[408082257,1773119441187,-1692.95548643,0.00019117,4]
[408082258,1773119441197,-787.0,0.00019178,2]
[408082259,1773119441207,-1000.0,0.00019178,2]
[408082260,1773119441217,-500.15189791,0.00019178,2]
[408082261,1773119441226,-200.0,0.0001922,2]
[408082262,1773119441235,-504.0,0.0001925,4]
[408082263,1773119441245,-166.66,0.00019253,2]
[408082264,1773119441255,-621.42600632,0.00019273,2]
[408082265,1773119441264,-300.0,0.000193,7]
[408082266,1773119441275,-503.63635116,0.00019313,2]
[408082267,1773119441284,-801.666,0.00019365,2]
[408082268,1773119441294,-1280.0,0.00019365,2]
[408082269,1773119441303,-922.0,0.00019365,2]
[408082270,1773119441313,-1213.0,0.00019365,2]
[408082271,1773119441322,-2461.0,0.00019365,2]
[408082272,1773119441332,-1995.045,0.00019365,2]
[408082273,1773119441341,-1000.0,0.0001938,2]
[408082274,1773119441351,-200.0,0.0001938,2]
[408082275,1773119441360,-181.08010149,0.0001938,2]
[408082276,1773119441370,-272.62944185,0.0001938,2]
[408082277,1773119441380,-3903.83,0.0001939,2]
[408082278,1773119441389,-2500.0,0.000194,2]
[408082279,1773119441399,-700.0,0.000194,7]
[408082280,1773119441408,-150.0,0.00019448,2]
[408082281,1773119441418,-150.0,0.00019448,2]
[408082282,1773119441428,-700.0,0.00019452,7]
[408082283,1773119441437,-500.0,0.00019452,7]
[408082284,1773119441446,-787.0,0.00019452,2]
[408082285,1773119441456,-1000.0,0.00019452,2]
[408082286,1773119441465,-150.0,0.00019476,2]
[408082287,1773119441475,-172.91703981,0.00019482,2]
[408082288,1773119441484,-1000.0,0.000195,2]
[408082289,1773119441494,-25043.24144448,0.000195,3]
[408082290,1773119441507,-2773.42553815,0.000195,3]
[408082291,1773119441523,-1966.95,0.000195,3]
[408082292,1773119441535,-308.67518983,0.000195,3]
[408082293,1773119441582,-3750.0,0.00019365,2]
[408082294,1773119441591,-2678.30820114,0.000195,3]
[408082295,1773119441602,-509.65562623,0.000195,3]
[408082296,1773119443017,-150.0,0.00021318,120]
[408082305,1773119444157,-8302.51727503,0.000195,3]
[408082306,1773119444167,-87.61864787,0.000195,7]
[408082307,1773119444179,-662.02618603,0.000195,7]
[408082308,1773119444191,-250.3551661,0.000195,7]
[408082309,1773119444201,-150.0,0.00019503,2]
[408082310,1773119444211,-160.0,0.0001955,2]
[408082311,1773119444220,-200.0,0.00019558,2]
[408082312,1773119444230,-31.39864331,0.00019572,2]
[408082313,1773119444243,-339.04628129,0.00019572,2]
[408082314,1773119444324,-215.68246221,0.00019572,2]
[408082315,1773119444335,-1400.0,0.000196,7]
[408082316,1773119444344,-166.66,0.00019626,2]
[408082317,1773119444354,-1650.08,0.00019626,2]
[408082318,1773119444363,-509.84,0.00019638,2]
[408082319,1773119444372,-1700.0,0.000197,7]
[408082320,1773119444382,-64.44253779,0.00019726,2]
[408082321,1773119446115,-722.55746221,0.00019726,2]
[408082322,1773119446125,-1000.0,0.00019726,2]
[408082323,1773119446135,-1126.182,0.00019756,2]
[408082324,1773119446144,-166.66,0.0001976,2]
[408082325,1773119446153,-763.1644,0.00019762,2]
[408082326,1773119446162,-173.73768006,0.00019769,2]
[408082327,1773119446171,-150.0,0.000198,30]
[408082328,1773119446181,-300.0,0.000198,7]
[408082329,1773119446190,-350.0,0.0001984,3]
[408082330,1773119446199,-195.00940315,0.00019852,2]
[408082331,1773119446208,-1558.69267695,0.00019852,2]
[408082332,1773119446226,-749.930102,0.00019852,2]
[408082333,1773119446283,-1595.20722105,0.00019852,2]
[408082334,1773119446293,-500.0,0.00019861,2]
[408082335,1773119446302,-393.56878237,0.00019861,2]
[408082336,1773119446312,-684.18062591,0.00019861,2]
[408082337,1773119446321,-500.0,0.00019862,2]
[408082338,1773119446330,-567.70708574,0.00019862,2]
[408082339,1773119446339,-500.0,0.00019862,2]
[408082340,1773119446348,-298.62140861,0.00019862,2]
[408082347,1773119622085,198.75,8.233e-05,2]
[408082348,1773119622292,198.75,8.667e-05,2]
[408082349,1773119622496,198.75,9.1e-05,2]
[408082350,1773119622696,198.75,9.533e-05,2]
[408082351,1773119622900,198.75,9.967e-05,2]
[408082352,1773119623098,198.75,0.000104,2]
[408082353,1773119623336,198.75,0.00010833,2]
[408082354,1773119623544,198.75,0.00011267,2]
[408082355,1773119623735,198.75,0.000117,2]
[408082356,1773119623934,198.75,0.00012133,2]
[408082357,1773119624139,198.75,0.00012567,2]
[408082358,1773119624444,198.75,0.00013,2]
[408082359,1773119624671,198.75,0.00013434,2]
[408082360,1773119624890,198.75,0.00013867,2]
[408082361,1773119647674,5011.167877,7.945e-05,2]
[408082364,1773119817175,185.51,0.000141,2]
[408082365,1773119840012,372.55786238,9.157e-05,2]
[408082366,1773119840038,127.44213762,9.157e-05,2]
[408082367,1773119841277,500.0,9.157e-05,2]
[408082368,1773119848770,500.0,9.157e-05,2]
[408082383,1773120168863,278.27,0.000141,2]
[408082384,1773120273710,943.0,0.00014157,2]
[408082400,1773120631306,-268.0,0.000143,2]
[408082402,1773120631315,-198.75,0.000143,2]
[408082404,1773120631324,-200.0,0.00014473,2]
[408082406,1773120631333,-49.7082,0.000145,5]
[408082409,1773120631369,-742.2918,0.000145,5]
[408082410,1773120631379,-68.30235021,0.00014734,2]
[408082411,1773120631391,-130.44764979,0.00014734,2]
[408082412,1773120631401,-1027.94119,0.0001482,7]
[408082413,1773120631411,-169.96981205,0.000149,2]
[408082414,1773120631420,-300.0,0.00014999,2]
[408082415,1773120631430,-1200.0,0.00014999,2]
[408082416,1773120631440,-150.0,0.00014999,2]
[408082417,1773120631449,-250.0,0.00015,2]
[408082418,1773120631459,-500.0,0.00015,30]
[408082419,1773120631468,-500.0,0.00015,30]
[408082420,1773120631478,-500.0,0.00015,30]
[408082421,1773120631487,-500.0,0.00015,30]
[408082422,1773120631498,-500.0,0.00015,30]
[408082423,1773120631508,-500.0,0.00015,30]
[408082424,1773120631517,-498.91644094,0.00015,30]
[408082425,1773120631530,-27.49392537,0.00015,30]
[408082426,1773120631539,-500.0,0.00015,30]
[408082427,1773120631548,-500.0,0.00015,30]
[408082428,1773120631558,-500.0,0.00015,30]
[408082429,1773120631567,-500.0,0.00015,30]
[408082430,1773120631577,-500.0,0.00015,30]
[408082431,1773120631587,-500.0,0.00015,30]
[408082432,1773120631596,-198.75,0.00015167,2]
[408082433,1773120631605,-198.75,0.000156,2]
[408082434,1773120631615,-250.0,0.0001573,2]
[408082435,1773120631624,-388.6790491,0.00015748,2]
[408082436,1773120631633,-1457.0,0.00015769,2]
[408082437,1773120631643,-1406.0,0.00016033,2]
[408082438,1773120631652,-488.0,0.00016033,2]
[408082439,1773120631662,-198.75,0.00016034,2]
[408082440,1773120631671,-369.0,0.00016065,2]
[408082441,1773120631680,-493.0,0.00016065,2]
[408082442,1773120631690,-455.64709291,0.00016097,2]
[408082443,1773120631700,-255.0,0.00016124,2]
[408082444,1773120631710,-420.0,0.00016416,2]
[408082445,1773120631721,-158.73338845,0.00016457,2]
[408082446,1773120631735,-341.26661155,0.00016457,2]
[408082448,1773120631744,-158.73338845,0.00016457,2]
[408082450,1773120631756,-341.26661155,0.00016457,2]
[408082452,1773120631766,-500.0,0.00016457,2]
[408082454,1773120631775,-500.0,0.00016457,2]
[408082456,1773120631785,-281.85018501,0.00016457,2]
[408082458,1773120631797,-218.14981499,0.00016457,2]
[408082460,1773120631806,-500.0,0.00016457,2]
[408082462,1773120631816,-87.5945786,0.00016457,2]
[408082465,1773120631827,-351.01092566,0.00016457,2]
[408082467,1773120631838,-61.39449574,0.00016457,2]
[408082469,1773120631848,-500.0,0.00016457,2]
[408082470,1773120631857,-200.0,0.00016457,2]
[408082471,1773120631866,-151.0,0.00016457,2]
[408082472,1773120631876,-151.0,0.00016457,2]
[408082473,1773120631886,-500.0,0.00016457,2]
[408082474,1773120631895,-151.0,0.00016457,2]
[408082475,1773120631904,-500.0,0.00016457,2]
[408082476,1773120631913,-151.0,0.00016457,2]
[408082477,1773120631923,-500.0,0.00016457,2]
[408082478,1773120631932,-151.0,0.00016457,2]
[408082479,1773120631942,-500.0,0.00016457,2]
[408082480,1773120631952,-151.0,0.00016457,2]
[408082481,1773120631961,-500.0,0.00016457,2]
[408082482,1773120631970,-151.0,0.00016457,2]
[408082483,1773120631980,-500.0,0.00016457,2]
[408082484,1773120631989,-151.0,0.00016457,2]
[408082485,1773120632315,-500.0,0.00016457,2]
[408082486,1773120632356,-151.0,0.00016457,2]
[408082487,1773120632366,-500.0,0.00016457,2]
[408082488,1773120632375,-151.0,0.00016457,2]
[408082489,1773120632384,-151.0,0.00016457,2]
[408082490,1773120632394,-151.0,0.00016457,2]
[408082491,1773120632403,-1092.33,0.00016457,2]
[408082492,1773120632412,-932.55867032,0.00016467,2]
[408082493,1773120632427,-336.37939,0.00016467,2]
[408082494,1773120632438,-1206.19193968,0.00016467,2]
[408082495,1773120632447,-24.02806032,0.00016467,2]
[408082496,1773120632458,-1475.97193968,0.00016467,2]
[408082497,1773120632468,-185.47,0.00016467,2]
[408082498,1773120632477,-198.75,0.00016467,2]
[408082499,1773120632486,-1680.0,0.00016499,2]
[408082500,1773120632495,-1092.33,0.00016731,2]
[408082501,1773120632505,-2192.36124532,0.00016878,2]
[408082502,1773120632517,-282.76875468,0.00016878,2]
[408082503,1773120632527,-204.25548642,0.00017,2]
[408082504,1773120632539,-95.74451358,0.00017,2]
[408082505,1773120632548,-504.0,0.00017,2]
[408082506,1773120632558,-1092.33,0.00017005,2]
[408082507,1773120632567,-150.0,0.00017189,2]
[408082508,1773120632577,-1092.33,0.00017279,2]
[408082509,1773120632586,-959.71320092,0.0001729,2]
[408082510,1773120632598,-1515.41679908,0.0001729,2]
[408082511,1773120632609,-288.52,0.00017338,2]
[408082512,1773120632618,-433.0,0.00017339,2]
[408082513,1773120632628,-185.47,0.00017382,2]
[408082514,1773120632638,-296.83,0.00017428,2]
[408082515,1773120632647,-1092.33,0.00017553,2]
[408082516,1773120632656,-2475.13,0.00017702,2]
[408082517,1773120632667,-1109.72170222,0.00017738,2]
[408082518,1773120632678,-1284.926488,0.00017784,7]
[408082519,1773120632689,-802.12426121,0.00017808,2]
[408082520,1773120632698,-1092.33,0.00017827,2]
[408082521,1773120632709,-1031.50903617,0.000179,2]
[408082522,1773120632720,-1031.50903614,0.000179,2]
[408082523,1773120632730,-1031.50903614,0.000179,2]
[408082524,1773120632739,-1031.50903614,0.000179,2]
[408082525,1773120632750,-343.83634539,0.000179,2]
[408082526,1773120632759,-343.83634538,0.000179,2]
[408082527,1773120632772,-343.83634538,0.000179,2]
[408082528,1773120632782,-343.83634538,0.000179,2]
[408082529,1773120632791,-150.0,0.00017951,2]
[408082530,1773120632799,-587.0,0.00017966,2]
[408082531,1773120632809,-1092.33,0.00018101,2]
[408082532,1773120632818,-2475.13,0.00018113,2]
[408082533,1773120632828,-185.47,0.00018296,2]
[408082534,1773120632837,-500.0,0.00018327,7]
[408082535,1773120632847,-500.0,0.00018327,7]
[408082536,1773120632856,-700.0,0.00018327,7]
[408082537,1773120632865,-22413.45,0.00018356,2]
[408082538,1773120632874,-1092.33,0.00018375,2]
[408082539,1773120632883,-1092.33,0.00018649,2]
[408082540,1773120632893,-481.41,0.00018825,2]
[408082541,1773120632902,-481.42,0.00018825,2]
[408082542,1773120632912,-1000.0,0.00018834,2]
[408082543,1773120632921,-174.61919141,0.00018834,2]
[408082544,1773120632930,-500.0,0.00018834,2]
[408082545,1773120632943,-200.0,0.00018834,2]
[408082546,1773120632953,-262.90206542,0.00018834,2]
[408082547,1773120632963,-152.0,0.00018917,3]
[408082548,1773120632973,-1092.33,0.00018923,2]
[408082549,1773120632982,-500.0,0.00019099,2]
[408082550,1773120632992,-592.1,0.00019178,2]
[408082551,1773120633001,-787.0,0.00019178,2]
[408082552,1773120633011,-1000.0,0.00019178,2]
[408082553,1773120633020,-1092.33,0.00019197,2]
[408082554,1773120633029,-2000.0,0.000192,2]
[408082555,1773120633039,-481.41,0.00019206,2]
[408082556,1773120633048,-185.47,0.00019211,2]
[408082557,1773120633057,-400.0,0.000193,7]
[408082558,1773120633067,-1000.0,0.00019382,2]
[408082559,1773120633076,-181.08010149,0.00019382,2]
[408082560,1773120633085,-200.0,0.00019382,2]
[408082561,1773120633095,-211.23840358,0.00019382,2]
[408082562,1773120633104,-900.0,0.000194,7]
[408082563,1773120633114,-500.0,0.00019423,7]
[408082564,1773120633123,-700.0,0.00019423,7]
[408082565,1773120633133,-504.0,0.00019423,4]
[408082566,1773120633144,-158.12854728,0.00019448,2]
[408082567,1773120633155,-153.75048617,0.00019448,2]
[408082568,1773120633164,-150.0,0.00019448,2]
[408082569,1773120633175,-150.0,0.00019448,2]
[408082570,1773120633184,-1000.0,0.00019452,2]
[408082571,1773120633196,-2437.5719377,0.00019464,2]
[408082572,1773120633206,-1092.44160927,0.00019471,2]
[408082573,1773120633216,-1400.0,0.000195,7]
[408082574,1773120633226,-150.0,0.00019503,2]
[408082575,1773120633236,-152.49408871,0.00019503,2]
[408082576,1773120633250,-30849.3969765,0.00019564,2]
[408082577,1773120633260,-1288.8888651,0.00019564,2]
[408082578,1773120633269,-16280.0870879,0.00019564,2]
[408082579,1773120633279,-1212.6029725,0.00019564,2]
[408082580,1773120633289,-338.91693647,0.00019572,2]
[408082581,1773120633302,-259.30035941,0.00019572,2]
[408082582,1773120633312,-481.42455123,0.00019586,2]
[408082583,1773120633325,-1900.0,0.000196,7]
[408082584,1773120633334,-582.5381983,0.00019661,2]
[408082585,1773120633344,-173.73768006,0.00019661,2]
[408082586,1773120633353,-169.9585,0.00019661,2]
[408082587,1773120633363,-4571.53566123,0.00019661,2]
[408082590,1773120637364,-401.616215,0.00019661,2]
[408082591,1773120637422,-328.86699669,0.00019661,2]
[408082592,1773120637482,-3182.13782708,0.00019661,2]
[408082593,1773120637491,-2500.0,0.00019661,2]
[408082594,1773120637500,-823.0,0.00019663,2]
[408082595,1773120637510,-1252.877,0.00019667,2]
[408082596,1773120637519,-170.83898024,0.00019667,2]
[408082597,1773120637527,-582.53819825,0.00019684,2]
[408082598,1773120637537,-2400.0,0.000197,7]
[408082599,1773120637546,-582.53819825,0.00019708,2]
[408082600,1773120637555,-1411.4,0.00019711,2]
[408082601,1773120637564,-787.0,0.00019726,2]
[408082602,1773120637574,-1000.0,0.00019726,2]
[408082603,1773120637585,-582.53819825,0.00019731,2]
[408082604,1773120637594,-582.53819825,0.00019755,2]
[408082605,1773120637603,-583.40097691,0.00019761,2]
[408082606,1773120637613,-500.0,0.00019761,2]
[408082607,1773120637624,-500.0,0.00019761,2]
[408082608,1773120637634,-500.0,0.00019761,2]
[408082609,1773120637643,-500.0,0.00019761,2]
[408082610,1773120637652,-500.0,0.00019761,2]
[408082611,1773120637662,-500.0,0.00019761,2]
[408082612,1773120637672,-500.0,0.00019761,2]
[408082613,1773120637682,-500.0,0.00019761,2]
[408082614,1773120637692,-513.30795353,0.00019761,2]
[408082615,1773120637701,-500.0,0.00019761,2]
[408082617,1773120637710,-13657.27932665,0.00019761,2]
[408082620,1773120637737,-71592.66140474,0.00019761,2]
[408082858,1773120640314,-301489.54745271,0.00019761,2]
[408083150,1773120645428,-783.87173,0.00019761,2]
[408083163,1773121525759,162.97,0.000138,2]
[408083164,1773121640108,3707.42971187,0.00014157,2]
[408083165,1773121662338,150.0,0.00018013,120]
[408083167,1773121831451,-351.40543182,0.00015,30]
[408083169,1773121831463,-253.07019022,0.00015,30]
[408083170,1773121831511,-111.49418957,0.00015,30]
[408083171,1773121831523,-410.55372032,0.0001519,2]
[408083172,1773121831572,-332.31703637,0.0001519,2]
[408083173,1773121831583,-202.92931008,0.0001519,2]
[408083174,1773121831596,-73.07068992,0.0001519,2]
[408083175,1773121831607,-1584.71,0.00015984,2]
[408083176,1773121831620,-479.805618,0.00016386,2]
[408083177,1773121831630,-1200.0,0.00016497,2]
[408083178,1773121831640,-300.0,0.00016498,2]
[408083179,1773121831649,-741.0,0.00016498,2]
[408083180,1773121831660,-300.0,0.00016498,2]
[408083181,1773121831669,-300.0,0.00016498,2]
[408083182,1773121831678,-300.0,0.00016498,2]
[408083183,1773121831688,-600.0,0.000165,2]
[408083184,1773121831699,-3315.04475448,0.000165,2]
[408083185,1773121831708,-195.0,0.000165,2]
[408083186,1773121831718,-2500.0,0.000165,2]
[408083187,1773121831727,-2500.0,0.000165,2]
[408083188,1773121831736,-2500.0,0.000165,2]
[408083189,1773121831746,-2500.0,0.000165,2]
[408083191,1773121831755,-1410.85081927,0.00016617,2]
[408083192,1773121831764,-504.0,0.00017,2]
[408083194,1773121831773,-200.0,0.0001725,2]
[408083196,1773121831782,-2000.0,0.0001725,2]
[408083198,1773121831790,-2724.05,0.0001725,2]
[408083200,1773121831800,-2000.0,0.0001725,2]
[408083202,1773121831809,-500.0,0.0001725,2]
[408083204,1773121831818,-733.514264,0.00017529,7]
[408083206,1773121831827,-1232.79,0.00017803,2]
[408083208,1773121831837,-150.0,0.00018013,2]
[408083210,1773121831846,-300.0,0.00018029,2]
[408083212,1773121831856,-420.0,0.00018029,2]
[408083214,1773121831865,-2078.83088185,0.00018044,2]
[408083216,1773121831874,-600.0,0.00018327,7]
[408083218,1773121831883,-500.0,0.00018327,7]
[408083220,1773121831892,-500.0,0.00018327,7]
[408083222,1773121831901,-1002.302,0.00018452,2]
[408083224,1773121831911,-319.29744196,0.00018607,2]
[408083227,1773121831924,-523.38923651,0.00018611,2]
[408083229,1773121831933,-175.29,0.0001862,2]
[408083231,1773121831942,-1232.79,0.00018693,2]
[408083233,1773121831951,-9186.34,0.00018708,2]
[408083235,1773121831961,-150.0,0.00018778,2]
[408083237,1773121831971,-1931.30566739,0.00018867,2]
[408083239,1773121831980,-174.61919141,0.00018867,2]
[408083241,1773121831989,-500.0,0.00018867,2]
[408083243,1773121831999,-2834.0,0.0001904,2]
[408083245,1773121832009,-399.05575937,0.00019166,2]
[408083246,1773121832018,-787.0,0.00019178,2]
[408083247,1773121832028,-1000.0,0.00019178,2]
[408083248,1773121832038,-2000.0,0.000192,2]
[408083249,1773121832048,-2757.6572,0.00019252,2]
[408083250,1773121832057,-4499.7114,0.00019263,2]
[408083251,1773121832066,-250.0,0.00019263,2]
[408083252,1773121832075,-2500.0,0.00019263,2]
[408083253,1773121832085,-1933.50931058,0.00019273,2]
[408083254,1773121832094,-1933.50931049,0.0001934,2]
[408083255,1773121832103,-151.500711,0.00019351,2]
[408083256,1773121832113,-250.0,0.00019351,2]
[408083257,1773121832122,-1000.0,0.00019351,2]
[408083258,1773121832131,-799.26915761,0.00019351,2]
[408083259,1773121832141,-250.0,0.00019351,2]
[408083260,1773121832150,-250.0,0.00019351,2]
[408083261,1773121832159,-250.0,0.00019351,2]
[408083262,1773121832168,-250.0,0.00019351,2]
[408083263,1773121832178,-500.0,0.00019351,2]
[408083264,1773121832187,-250.0,0.00019351,2]
[408083265,1773121832197,-500.0,0.00019351,2]
[408083266,1773121832206,-1377.42282659,0.00019351,2]
[408083267,1773121832216,-250.0,0.00019351,2]
[408083268,1773121832225,-1500.0,0.00019351,2]
[408083269,1773121832235,-74.76432027,0.00019351,2]
[408083270,1773121832247,-425.23567973,0.00019351,2]
[408083271,1773121832257,-250.0,0.00019351,2]
[408083272,1773121832266,-754.0050979,0.00019351,2]
[408083273,1773121832276,-500.0,0.00019351,2]
[408083274,1773121832285,-1455.19462612,0.00019351,2]
[408083275,1773121832297,-44.80537388,0.00019351,2]
[408083276,1773121832306,-250.0,0.00019351,2]
[408083277,1773121832315,-3.94619902,0.00019351,2]
[408083278,1773121832327,-496.05380098,0.00019351,2]
[408083279,1773121832336,-65.2753977,0.00019351,2]